fUSD/lending_fUSD_20260424
["ID","MTS","AMOUNT","RATE_DAILY","PERIOD"]
[421078527,1776985832196,-468.67509168,7.848e-05,2]
[421078528,1776985832237,-31.32490832,7.848e-05,2]
[421078529,1776985832247,-500.0,7.848e-05,2]
[421078530,1776985832257,-500.0,7.848e-05,2]
[421078531,1776985832266,-300.0,7.848e-05,2]
[421078532,1776985832276,-1200.0,7.848e-05,2]
[421078533,1776985832285,-1835.47356362,7.849e-05,2]
[421078534,1776985832297,-205553.81425773,7.849e-05,2]
[421078535,1776985832313,-63348.81487,7.849e-05,2]
[421078536,1776985832324,-114224.92580865,7.849e-05,2]
[421078537,1776985832334,-300.0,7.947e-05,2]
[421078538,1776985832343,-604.12034342,7.948e-05,2]
[421078539,1776985832352,-604.12034342,7.948e-05,2]
[421078540,1776985832362,-604.12034342,7.948e-05,2]
[421078541,1776985832371,-500.0,7.948e-05,2]
[421078542,1776985832383,-500.0,7.948e-05,2]
[421078543,1776985832393,-500.0,7.948e-05,2]
[421078544,1776985832403,-312.36103026,7.948e-05,2]
[421078545,1776985832412,-604.12034342,7.948e-05,2]
[421078546,1776985832421,-604.12034342,7.948e-05,2]
[421078547,1776985832431,-261.27277377,7.948e-05,2]
[421078548,1776985832440,-150.0,7.948e-05,2]
[421078549,1776985832450,-500.0,8e-05,2]
[421078550,1776985832459,-203.74,8.138e-05,2]
[421078551,1776985832469,-1087.45998083,8.178e-05,2]
[421078552,1776985832481,-247.71001917,8.178e-05,2]
[421078553,1776985832490,-150.0,8.186e-05,2]
[421078554,1776985832500,-150.0,8.186e-05,2]
[421078555,1776985832509,-150.0,8.186e-05,2]
[421078556,1776985832518,-150.0,8.186e-05,2]
[421078557,1776985832528,-150.0,8.186e-05,2]
[421078558,1776985832538,-152.88062369,8.186e-05,2]
[421078559,1776985832547,-103.82744391,8.186e-05,2]
[421078560,1776985832590,-339.38887661,7.848e-05,2]
[421078561,1776985832599,-46.17255609,8.186e-05,2]
[421078562,1776985832609,-150.0,8.186e-05,2]
[421078563,1776985832618,-150.0,8.186e-05,2]
[421078564,1776985832628,-74.80332481,8.186e-05,2]
[421078565,1776985832640,-167.93979845,8.186e-05,2]
[421078566,1776985832650,-500.0,8.219e-05,2]
[421078567,1776985832660,-11.13467913,8.24e-05,2]
[421078568,1776985832732,-138.86532087,8.24e-05,2]
[421078569,1776985832742,-430.26636955,8.243e-05,2]
[421078570,1776985832754,-69.73363045,8.243e-05,2]
[421078571,1776985832764,-500.0,8.243e-05,2]
[421078572,1776985832774,-500.97543413,8.243e-05,2]
[421078573,1776985832784,-190.0,8.245e-05,2]
[421078574,1776985832793,-371.36368211,8.262e-05,2]
[421078575,1776985832806,-645.56056057,8.268e-05,2]
[421078576,1776985832818,-970.44892758,8.268e-05,2]
[421078577,1776985832829,-15171.78584012,8.268e-05,2]
[421078578,1776985838476,-12.18760137,7.848e-05,2]
[421078579,1776985838504,-487.81239863,7.848e-05,2]
[421078580,1776985838513,-500.0,7.848e-05,2]
[421078581,1776985838523,-500.0,7.848e-05,2]
[421078582,1776985838533,-356.74760137,7.848e-05,2]
[421078583,1776985838548,-143.25239863,7.848e-05,2]
[421078584,1776985838557,-500.0,7.848e-05,2]
[421078585,1776985838566,-52.64760137,7.848e-05,2]
[421078586,1776985838578,-447.35239863,7.848e-05,2]
[421078587,1776985838587,-500.0,8.219e-05,2]
[421078588,1776985838597,-500.0,8.219e-05,2]
[421078589,1776985838606,-500.0,8.219e-05,2]
[421078590,1776985838615,-209.09598546,8.219e-05,2]
[421078591,1776985838625,-500.0,8.219e-05,2]
[421078592,1776985838635,-500.0,8.219e-05,2]
[421078593,1776985838644,-500.0,8.219e-05,2]
[421078594,1776985838653,-1152.49810116,8.268e-05,2]
[421078595,1776985838700,-76167.24879889,8.268e-05,2]
[421078596,1776985838711,-48993.48432967,8.268e-05,2]
[421078597,1776985838722,-829.67010334,8.268e-05,2]
[421078598,1776985838738,-2200.0,8.268e-05,2]
[421078599,1776985840347,-323.311332,8.268e-05,2]
[421078600,1776985840715,-2906.34935595,8.268e-05,2]
[421078601,1776985840823,-2078.89105707,8.268e-05,2]
[421078619,1776985843452,-6171.92450023,8.268e-05,2]
[421078620,1776985843507,-9695.6658431,8.268e-05,2]
[421078635,1776985846323,-76432.1806181,8.268e-05,2]
[421078636,1776985846334,-6552.59999987,8.268e-05,2]
[421078637,1776985846344,-8479.35632649,8.268e-05,2]
[421078638,1776985846355,-845.000003,8.268e-05,2]
[421078649,1776985846908,-3162.19703683,8.268e-05,2]
[421078682,1776987032345,-251.0,7.69e-05,2]
[421078683,1776987032355,-250.0,7.69e-05,2]
[421078684,1776987032366,-369.0,7.69e-05,2]
[421078685,1776987032376,-300.0,7.847e-05,2]
[421078686,1776987032386,-1200.0,7.847e-05,2]
[421078687,1776987032395,-150.0,7.847e-05,2]
[421078688,1776987032407,-500.0,7.848e-05,2]
[421078689,1776987032418,-500.0,7.848e-05,2]
[421078690,1776987032427,-537.57221363,7.848e-05,2]
[421078691,1776987032438,-500.0,7.848e-05,2]
[421078692,1776987032448,-500.0,7.848e-05,2]
[421078693,1776987032458,-500.0,7.848e-05,2]
[421078694,1776987032467,-500.0,7.848e-05,2]
[421078695,1776987032477,-500.0,7.848e-05,2]
[421078696,1776987032488,-597.63056968,7.848e-05,2]
[421078697,1776987032497,-597.63056968,7.848e-05,2]
[421078698,1776987032507,-597.63056968,7.848e-05,2]
[421078699,1776987032518,-597.63056968,7.848e-05,2]
[421078700,1776987032528,-597.63056968,7.848e-05,2]
[421078701,1776987032540,-597.63056968,7.848e-05,2]
[421078702,1776987032550,-597.63056968,7.848e-05,2]
[421078703,1776987032559,-597.63056968,7.848e-05,2]
[421078704,1776987032568,-597.63056968,7.848e-05,2]
[421078705,1776987032577,-597.63056968,7.848e-05,2]
[421078706,1776987032586,-597.63056968,7.848e-05,2]
[421078707,1776987032595,-27.68029505,7.848e-05,2]
[421078708,1776987033042,-569.95027463,7.848e-05,2]
[421078709,1776987033052,-597.63056968,7.848e-05,2]
[421078710,1776987033061,-597.63056968,7.848e-05,2]
[421078711,1776987033070,-597.63056968,7.848e-05,2]
[421078712,1776987033080,-597.63056968,7.848e-05,2]
[421078713,1776987033089,-597.63056968,7.848e-05,2]
[421078714,1776987033098,-597.63056968,7.848e-05,2]
[421078715,1776987033107,-597.63056968,7.848e-05,2]
[421078716,1776987033116,-597.63056968,7.848e-05,2]
[421078717,1776987033125,-597.63056968,7.848e-05,2]
[421078718,1776987033134,-597.63056968,7.848e-05,2]
[421078719,1776987033143,-597.63056968,7.848e-05,2]
[421078720,1776987033152,-597.63056968,7.848e-05,2]
[421078721,1776987033161,-597.63056968,7.848e-05,2]
[421078722,1776987033170,-597.63056968,7.848e-05,2]
[421078723,1776987033179,-597.63056968,7.848e-05,2]
[421078724,1776987033188,-597.63056968,7.848e-05,2]
[421078725,1776987033197,-597.63056968,7.848e-05,2]
[421078726,1776987033205,-597.63056968,7.848e-05,2]
[421078727,1776987033214,-597.63056968,7.848e-05,2]
[421078728,1776987033223,-597.63056968,7.848e-05,2]
[421078729,1776987033232,-597.63056968,7.848e-05,2]
[421078730,1776987033241,-597.63056968,7.848e-05,2]
[421078731,1776987033251,-597.63056968,7.848e-05,2]
[421078732,1776987033260,-597.63056968,7.848e-05,2]
[421078733,1776987033269,-597.63056968,7.848e-05,2]
[421078734,1776987033279,-597.63056968,7.848e-05,2]
[421078735,1776987033288,-597.63056968,7.848e-05,2]
[421078736,1776987033297,-597.63056968,7.848e-05,2]
[421078737,1776987033306,-597.63056968,7.848e-05,2]
[421078738,1776987033316,-597.63056968,7.848e-05,2]
[421078739,1776987033325,-597.63056968,7.848e-05,2]
[421078741,1776987033335,-597.63056968,7.848e-05,2]
[421078743,1776987033345,-597.63056968,7.848e-05,2]
[421078744,1776987033355,-597.63056968,7.848e-05,2]
[421078745,1776987033364,-597.63056968,7.848e-05,2]
[421078746,1776987033374,-597.63056968,7.848e-05,2]
[421078747,1776987033383,-597.63056968,7.848e-05,2]
[421078748,1776987033392,-597.63056968,7.848e-05,2]
[421078749,1776987033402,-597.63056968,7.848e-05,2]
[421078750,1776987033411,-597.63056968,7.848e-05,2]
[421078751,1776987033422,-597.63056968,7.848e-05,2]
[421078752,1776987033432,-597.63056968,7.848e-05,2]
[421078753,1776987033442,-597.63056968,7.848e-05,2]
[421078754,1776987033453,-597.63056968,7.848e-05,2]
[421078755,1776987033463,-597.63056968,7.848e-05,2]
[421078756,1776987033473,-597.63056968,7.848e-05,2]
[421078757,1776987033482,-597.63056968,7.848e-05,2]
[421078758,1776987033490,-597.63056968,7.848e-05,2]
[421078759,1776987033499,-318.89476608,7.848e-05,2]
[421078760,1776987033508,-597.63056968,7.848e-05,2]
[421078761,1776987033518,-599.76496457,7.848e-05,2]
[421078762,1776987033527,-599.76496457,7.848e-05,2]
[421078763,1776987033827,-599.76496457,7.848e-05,2]
[421078764,1776987033837,-599.76496457,7.848e-05,2]
[421078765,1776987033846,-599.76496457,7.848e-05,2]
[421078766,1776987033855,-599.76496457,7.848e-05,2]
[421078767,1776987033865,-599.76496457,7.848e-05,2]
[421078768,1776987033874,-599.76496457,7.848e-05,2]
[421078769,1776987033883,-599.76496457,7.848e-05,2]
[421078770,1776987033893,-599.76496457,7.848e-05,2]
[421078771,1776987033902,-599.76496457,7.848e-05,2]
[421078772,1776987033911,-599.76496457,7.848e-05,2]
[421078773,1776987033921,-599.76496457,7.848e-05,2]
[421078774,1776987033931,-599.76496457,7.848e-05,2]
[421078775,1776987033941,-599.76496457,7.848e-05,2]
[421078776,1776987033951,-599.76496457,7.848e-05,2]
[421078777,1776987033961,-599.76496457,7.848e-05,2]
[421078778,1776987033971,-599.76496457,7.848e-05,2]
[421078779,1776987033980,-599.76496457,7.848e-05,2]
[421078780,1776987033989,-599.76496457,7.848e-05,2]
[421078781,1776987033998,-599.76496457,7.848e-05,2]
[421078782,1776987034007,-599.76496457,7.848e-05,2]
[421078783,1776987034016,-599.76496457,7.848e-05,2]
[421078784,1776987034027,-599.76496457,7.848e-05,2]
[421078785,1776987034036,-599.76496457,7.848e-05,2]
[421078786,1776987034044,-599.76496457,7.848e-05,2]
[421078787,1776987034054,-599.76496457,7.848e-05,2]
[421078788,1776987034063,-599.76496457,7.848e-05,2]
[421078789,1776987034072,-161.56239372,7.848e-05,2]
[421078790,1776987034081,-248.38916603,7.848e-05,2]
[421078791,1776987034092,-250.0,7.848e-05,2]
[421078792,1776987034103,-283.85,7.848e-05,2]
[421078793,1776987034113,-15446.33508305,7.849e-05,2]
[421078794,1776987034137,-577.95859147,7.849e-05,2]
[421078795,1776987034159,-5344.02188488,7.849e-05,2]
[421078796,1776987034170,-2769.66149264,7.849e-05,2]
[421078797,1776987034181,-2481.28,7.849e-05,2]
[421078798,1776987034207,-5438.01816079,7.849e-05,2]
[421078801,1776987038640,-571.0949988,7.748e-05,2]
[421078802,1776987038697,-796.24490861,7.748e-05,2]
[421078803,1776987038808,-1102.31646377,7.748e-05,2]
[421078967,1776987040850,-9617.69284702,7.748e-05,2]
[421079170,1776987043601,-1622.4465798,7.748e-05,2]
[421079171,1776987043614,-1208.68179918,7.748e-05,2]
[421079172,1776987043629,-500.00127019,7.748e-05,2]
[421079173,1776987043737,-993.80145634,7.748e-05,2]
[421079174,1776987043847,-12189.93208424,7.748e-05,2]
[421079180,1776987046896,-404.85565118,7.748e-05,2]
[421079181,1776987046952,-12899.31836688,7.748e-05,2]
[421079182,1776987046968,-17206.85968743,7.748e-05,2]
[421079183,1776987046980,-843.199996,7.748e-05,2]
[421079200,1776988231495,-288.80740356,7.849e-05,2]
[421079201,1776988231505,-252.0,7.849e-05,2]
[421079202,1776988231514,-289.38609068,7.992e-05,2]
[421079203,1776988231525,-320.0,8.15e-05,2]
[421079204,1776988231536,-197.48,8.193e-05,2]
[421079205,1776988231546,-169.8,8.26e-05,2]
[421079206,1776988231558,-168.8,8.26e-05,2]
[421079207,1776988231568,-168.8,8.26e-05,2]
[421079208,1776988231578,-168.8,8.26e-05,2]
[421079209,1776988231588,-168.7,8.26e-05,2]
[421079210,1776988231599,-151.0,8.265e-05,2]
[421079211,1776988231608,-151.0,8.265e-05,2]
[421079212,1776988231617,-300.0,8.279e-05,2]
[421079213,1776988231627,-1200.0,8.279e-05,2]
[421079214,1776988231636,-71575.83005064,8.28e-05,2]
[421079215,1776988231648,-18548.62030735,8.28e-05,2]
[421079216,1776988231659,-583.70400253,8.28e-05,2]
[421079217,1776988231671,-544.02,8.28e-05,2]
[421079218,1776988231681,-89162.81827929,8.28e-05,2]
[421079219,1776988231692,-916.68337832,8.28e-05,2]
[421079220,1776988231715,-1292.2457146,8.28e-05,2]
[421079221,1776988231726,-6272.81329441,8.28e-05,2]
[421079222,1776988231737,-351.02307539,8.28e-05,2]
[421079223,1776988231748,-491.0360497,8.28e-05,2]
[421079224,1776988231759,-342.48315084,8.28e-05,2]
[421079225,1776988231796,-2583.6146505,8.28e-05,2]
[421079226,1776988231807,-2912.59550705,8.28e-05,2]
[421079227,1776988231818,-2874.6952,8.28e-05,2]
[421079228,1776988231829,-2740.465,8.28e-05,2]
[421079229,1776988231840,-1763.97926805,8.28e-05,2]
[421079230,1776988231851,-2800.70070936,8.28e-05,2]
[421079231,1776988231862,-468.75595281,8.28e-05,2]
[421079232,1776988231873,-2212.01251569,8.28e-05,2]
[421079234,1776988231884,-3177.84132518,8.28e-05,2]
[421079293,1776988239651,-223.22633626,8.279e-05,2]
[421079294,1776988239660,-498.56366374,8.279e-05,2]
[421079295,1776988239672,-1.43633626,8.279e-05,2]
[421079296,1776988239681,-173.87241622,8.279e-05,2]
[421079297,1776988239690,-500.0,8.279e-05,2]
[421079298,1776988239699,-182.20125447,8.279e-05,2]
[421079299,1776988239709,-500.0,8.279e-05,2]
[421079300,1776988239718,-500.0,8.279e-05,2]
[421079301,1776988239727,-476.30054954,8.279e-05,2]
[421079302,1776988239736,-500.0,8.279e-05,2]
[421079303,1776988239745,-500.0,8.279e-05,2]
[421079304,1776988239754,-500.0,8.279e-05,2]
[421079305,1776988239764,-112.95580296,8.279e-05,2]
[421079306,1776988239775,-387.04419704,8.279e-05,2]
[421079307,1776988239784,-128.90890206,8.279e-05,2]
[421079308,1776988240217,-371.09109794,8.279e-05,2]
[421079309,1776988240227,-500.0,8.279e-05,2]
[421079310,1776988240238,-500.0,8.279e-05,2]
[421079311,1776988240248,-500.0,8.279e-05,2]
[421079312,1776988240259,-500.0,8.279e-05,2]
[421079313,1776988240268,-500.0,8.279e-05,2]
[421079314,1776988240277,-500.0,8.279e-05,2]
[421079315,1776988240286,-500.0,8.279e-05,2]
[421079316,1776988240295,-500.0,8.279e-05,2]
[421079317,1776988240304,-500.0,8.279e-05,2]
[421079318,1776988240313,-500.0,8.279e-05,2]
[421079319,1776988240322,-362.75588855,8.279e-05,2]
[421079320,1776988240331,-500.0,8.279e-05,2]
[421079321,1776988240341,-12311.26863056,8.28e-05,2]
[421079322,1776988240353,-571.36894022,8.28e-05,2]
[421079323,1776988240405,-885.1413525,8.28e-05,2]
[421079338,1776988242806,-1563.84,8.28e-05,2]
[421079352,1776988245797,-658.03402278,8.28e-05,2]
[421079396,1776988975532,-250.0,8.113e-05,2]
[421079397,1776988977205,-250.0,8.114e-05,2]
[421079413,1776989431825,-1000.0,8.099e-05,2]
[421079414,1776989431835,-300.0,8.099e-05,2]
[421079415,1776989431846,-1200.0,8.099e-05,2]
[421079416,1776989431856,-300.0,8.099e-05,2]
[421079417,1776989431867,-300.0,8.099e-05,2]
[421079418,1776989431877,-23231.58503984,8.1e-05,2]
[421079419,1776989431889,-444.0,8.1e-05,2]
[421079420,1776989431914,-6444.33781323,8.1e-05,2]
[421079421,1776989431985,-2060.33272966,8.1e-05,2]
[421079429,1776989438010,-939.95907403,8.1e-05,2]
[421079430,1776989438022,-526.29581916,8.1e-05,2]
[421079431,1776989438036,-13956.77562408,8.1e-05,2]
[421079432,1776989438047,-255.0,8.1e-05,2]
[421079433,1776989438057,-250.0,8.114e-05,2]
[421079434,1776989438067,-150.0,8.172e-05,2]
[421079435,1776989438078,-578.20924308,8.173e-05,2]
[421079436,1776989438087,-177.81462271,8.173e-05,2]
[421079437,1776989438097,-500.0,8.173e-05,2]
[421079438,1776989438107,-151.0,8.176e-05,2]
[421079439,1776989438117,-151.0,8.177e-05,2]
[421079440,1776989438126,-889.446869,8.178e-05,2]
[421079441,1776989438135,-587.3691,8.18e-05,2]
[421079442,1776989438145,-8344.6835,8.18e-05,2]
[421079443,1776989438154,-9552.16786547,8.195e-05,2]
[421079444,1776989438164,-151.0,8.195e-05,2]
[421079445,1776989438173,-151.0,8.195e-05,2]
[421079446,1776989438183,-174.61919141,8.195e-05,2]
[421079447,1776989438192,-151.0,8.197e-05,2]
[421079448,1776989438202,-2012.86,8.199e-05,2]
[421079449,1776989438212,-168.263,8.199e-05,2]
[421079450,1776989438222,-37815.7994158,8.2e-05,2]
[421079451,1776989438234,-4800.40336343,8.2e-05,2]
[421079452,1776989438244,-570.44,8.2e-05,2]
[421079453,1776989438254,-638.38,8.202e-05,2]
[421079454,1776989438263,-150.0,8.219e-05,2]
[421079455,1776989438272,-254.86309859,8.219e-05,2]
[421079456,1776989438282,-150.0,8.219e-05,2]
[421079457,1776989438292,-150.0,8.219e-05,2]
[421079458,1776989438302,-232.36403642,8.219e-05,2]
[421079459,1776989438311,-150.0,8.219e-05,2]
[421079460,1776989438320,-500.0,8.228e-05,2]
[421079461,1776989438330,-197.9,8.239e-05,2]
[421079462,1776989438339,-9905.5980765,8.25e-05,2]
[421079463,1776989438348,-151.0,8.25e-05,2]
[421079464,1776989438359,-711.6795411,8.266e-05,2]
[421079465,1776989438368,-721.12765535,8.275e-05,2]
[421079466,1776989438378,-1428.38747117,8.275e-05,2]
[421079467,1776989438387,-200.0,8.275e-05,2]
[421079468,1776989438396,-743.50770149,8.275e-05,2]
[421079469,1776989438405,-279.9045709,8.275e-05,2]
[421079470,1776989438415,-151.0,8.277e-05,2]
[421079471,1776989438424,-389.0,8.28e-05,2]
[421079472,1776989438433,-500.0,8.28e-05,2]
[421079473,1776989438442,-500.0,8.283e-05,2]
[421079474,1776989438452,-271.81408,8.287e-05,2]
[421079475,1776989438461,-2005.0,8.3e-05,2]
[421079476,1776989438470,-2005.0,8.3e-05,2]
[421079477,1776989438479,-10272.10520533,8.305e-05,2]
[421079478,1776989438489,-151.0,8.305e-05,2]
[421079479,1776989438498,-500.0,8.305e-05,2]
[421079480,1776989438507,-152.0,8.314e-05,7]
[421079481,1776989438516,-500.0,8.338e-05,2]
[421079482,1776989438525,-500.0,8.359e-05,2]
[421079483,1776989438534,-500.0,8.359e-05,2]
[421079484,1776989438544,-151.41732095,8.359e-05,2]
[421079485,1776989438553,-500.0,8.359e-05,2]
[421079486,1776989438562,-8009.59220844,8.36e-05,2]
[421079487,1776989438574,-829.67010334,8.36e-05,2]
[421079488,1776989438586,-479.436717,8.36e-05,2]
[421079489,1776989438620,-1333.47406914,8.36e-05,2]
[421079490,1776989438629,-151.0,8.36e-05,2]
[421079491,1776989438638,-46.30401415,8.377e-05,2]
[421079492,1776989438672,-104.69598585,8.377e-05,2]
[421079493,1776989438681,-500.0,8.393e-05,2]
[421079494,1776989438690,-250.0,8.394e-05,2]
[421079495,1776989438699,-151.0,8.397e-05,2]
[421079496,1776989438708,-2125.53910942,8.4e-05,2]
[421079497,1776989438724,-616.46089058,8.4e-05,2]
[421079498,1776989438733,-17.80986419,8.415e-05,2]
[421079499,1776989438744,-133.19013581,8.415e-05,2]
[421079500,1776989438753,-151.0,8.415e-05,2]
[421079501,1776989438762,-151.0,8.415e-05,2]
[421079502,1776989438771,-151.0,8.415e-05,2]
[421079503,1776989438780,-579.26019945,8.415e-05,2]
[421079509,1776989440255,-2180.36272786,8.2e-05,2]
[421079510,1776989440312,-2765.90569848,8.2e-05,2]
[421079511,1776989440322,-500.0,8.274e-05,2]
[421079512,1776989440334,-7600.88734776,8.415e-05,2]
[421079513,1776989440366,-713.67957342,8.415e-05,2]
[421079514,1776989440472,-1902.4269139,8.415e-05,2]
[421079533,1776989442913,-250.04946802,8.415e-05,2]
[421079534,1776989442923,-151.0,8.415e-05,2]
[421079535,1776989442932,-500.0,8.448e-05,2]
[421079536,1776989442942,-1895.24,8.466e-05,14]
[421079537,1776989442951,-1770.04968747,8.466e-05,2]
[421079538,1776989442962,-853.9665,8.466e-05,2]
[421079539,1776989443018,-3133.36,8.466e-05,2]
[421079540,1776989443029,-1171.98381253,8.466e-05,2]
[421079541,1776989443039,-577.279959,8.466e-05,2]
[421079542,1776989443048,-577.279959,8.466e-05,2]
[421079543,1776989443057,-577.279959,8.466e-05,2]
[421079544,1776989443067,-577.279959,8.466e-05,2]
[421079545,1776989443076,-11455.01673214,8.47e-05,2]
[421079546,1776989443085,-151.0,8.47e-05,2]
[421079547,1776989443095,-500.0,8.503e-05,2]
[421079548,1776989443104,-2500.0,8.505e-05,2]
[421079549,1776989443114,-151.0,8.513e-05,2]
[421079550,1776989443123,-500.0,8.521e-05,2]
[421079551,1776989443133,-11878.85235123,8.525e-05,2]
[421079552,1776989443143,-151.0,8.525e-05,2]
[421079553,1776989443153,-367.489052,8.532e-05,2]
[421079554,1776989443163,-367.489052,8.532e-05,2]
[421079555,1776989443172,-367.489052,8.532e-05,2]
[421079556,1776989443181,-367.489052,8.532e-05,2]
[421079557,1776989443191,-1028.89653698,8.538e-05,2]
[421079558,1776989443200,-600.0,8.541e-05,2]
[421079559,1776989443211,-516.31,8.541e-05,2]
[421079560,1776989443221,-500.0,8.558e-05,2]
[421079561,1776989443230,-500.0,8.579e-05,2]
[421079562,1776989443240,-151.0,8.58e-05,2]
[421079563,1776989443250,-151.0,8.58e-05,2]
[421079564,1776989443259,-151.0,8.58e-05,2]
[421079565,1776989443268,-151.0,8.58e-05,2]
[421079566,1776989443279,-6874.38553878,8.58e-05,2]
[421079567,1776989443306,-1838.8604776,8.58e-05,2]
[421079568,1776989443322,-3605.12387185,8.58e-05,2]
[421079569,1776989443331,-151.0,8.58e-05,2]
[421079570,1776989443340,-764.93600722,8.607e-05,2]
[421079571,1776989443350,-500.0,8.613e-05,2]
[421079572,1776989443360,-7536.1584234,8.635e-05,2]
[421079573,1776989443372,-5237.99115069,8.635e-05,2]
[421079574,1776989443381,-151.0,8.635e-05,2]
[421079575,1776989443391,-482.22070413,8.651e-05,2]
[421079577,1776989443401,-158.0,8.659e-05,5]
[421079579,1776989443410,-500.0,8.668e-05,2]
[421079581,1776989443419,-1134.46117742,8.684e-05,2]
[421079583,1776989443429,-3236.32696776,8.69e-05,2]
[421079587,1776989443458,-7397.37146395,8.69e-05,2]
[421079601,1776989445996,-300.10407717,8.69e-05,2]
[421079602,1776989446007,-2312.99059945,8.69e-05,2]
[421079603,1776989446017,-151.0,8.69e-05,2]
[421079604,1776989446026,-151.0,8.697e-05,2]
[421079605,1776989446035,-367.489052,8.715e-05,2]
[421079606,1776989446044,-367.489052,8.715e-05,2]
[421079607,1776989446054,-367.489052,8.715e-05,2]
[421079608,1776989446064,-367.489052,8.715e-05,2]
[421079609,1776989446074,-577.279959,8.715e-05,2]
[421079610,1776989446084,-577.279959,8.715e-05,2]
[421079611,1776989446095,-577.279959,8.715e-05,2]
[421079612,1776989446105,-143.33293535,8.715e-05,2]
[421079613,1776989446147,-57.6820981,8.715e-05,2]
[421079614,1776989446179,-376.26492555,8.715e-05,2]
[421079615,1776989446188,-500.0,8.723e-05,2]
[421079616,1776989446197,-1584.06233278,8.731e-05,2]
[421079617,1776989446209,-60.34390922,8.731e-05,2]
[421079618,1776989446219,-597.58539055,8.731e-05,2]
[421079619,1776989446259,-874.04884267,8.731e-05,2]
[421079620,1776989446271,-11551.40377178,8.731e-05,2]
[421079621,1776989446280,-859.773501,8.731e-05,2]
[421079622,1776989446291,-156.587,8.743e-05,2]
[421079623,1776989446301,-181.08010149,8.743e-05,2]
[421079624,1776989446310,-151.0,8.745e-05,2]
[421079625,1776989446320,-151.0,8.745e-05,2]
[421079626,1776989446330,-2457.39666612,8.745e-05,2]
[421079627,1776989446555,-938.97819323,8.745e-05,2]
[421079680,1776990632085,-300.0,7.692e-05,2]
[421079681,1776990632096,-300.0,7.692e-05,2]
[421079682,1776990632109,-120.22605909,7.692e-05,2]
[421079683,1776990632158,-356.44950306,7.692e-05,2]
[421079684,1776990632208,-428.3869834,7.692e-05,2]
[421079685,1776990632221,-294.93745445,7.692e-05,2]
[421079686,1776990632234,-167.0,7.692e-05,2]
[421079687,1776990632244,-231.67556215,7.693e-05,2]
[421079688,1776990632258,-462.84443785,7.693e-05,2]
[421079689,1776990632271,-150.0,7.693e-05,2]
[421079690,1776990632283,-150.0,7.693e-05,2]
[421079691,1776990632294,-150.0,7.693e-05,2]
[421079692,1776990632304,-150.0,7.693e-05,2]
[421079693,1776990632314,-150.0,7.693e-05,2]
[421079694,1776990632326,-150.0,7.693e-05,2]
[421079695,1776990632339,-150.0,7.693e-05,2]
[421079696,1776990632350,-150.0,7.693e-05,2]
[421079697,1776990632362,-150.0,7.693e-05,2]
[421079698,1776990632374,-150.0,7.693e-05,2]
[421079699,1776990632386,-150.0,7.693e-05,2]
[421079700,1776990632397,-150.0,7.693e-05,2]
[421079701,1776990632408,-150.05761515,7.693e-05,2]
[421079702,1776990632421,-226.9740427,7.693e-05,2]
[421079703,1776990632432,-150.0,7.693e-05,2]
[421079704,1776990632442,-226.9740427,7.702e-05,2]
[421079706,1776990632456,-226.9740427,7.71e-05,2]
[421079708,1776990632468,-226.9740427,7.719e-05,2]
[421079710,1776990632478,-150.0,7.726e-05,2]
[421079712,1776990632488,-226.9740427,7.728e-05,2]
[421079713,1776990632505,-226.9740427,7.736e-05,2]
[421079714,1776990632516,-226.9740427,7.745e-05,2]
[421079715,1776990632549,-150.0,7.75e-05,2]
[421079716,1776990632561,-226.9740427,7.754e-05,2]
[421079717,1776990632573,-150.0,7.754e-05,2]
[421079718,1776990632588,-150.0,7.759e-05,2]
[421079719,1776990632601,-226.9740427,7.762e-05,2]
[421079720,1776990632613,-226.9740427,7.771e-05,2]
[421079721,1776990632628,-150.0,7.771e-05,2]
[421079722,1776990632641,-1111.0,7.771e-05,2]
[421079723,1776990632653,-150.0,7.779e-05,2]
[421079724,1776990632666,-226.9740427,7.779e-05,2]
[421079725,1776990632678,-226.9740427,7.788e-05,2]
[421079726,1776990632691,-150.0,7.792e-05,2]
[421079727,1776990632703,-47.18997598,7.797e-05,2]
[421079728,1776990632738,-179.78406672,7.797e-05,2]
[421079729,1776990632750,-226.9740427,7.805e-05,2]
[421079730,1776990632760,-150.0,7.807e-05,2]
[421079731,1776990632772,-226.9740427,7.814e-05,2]
[421079732,1776990632784,-150.0,7.815e-05,2]
[421079733,1776990632795,-150.0,7.815e-05,2]
[421079734,1776990632806,-150.0,7.815e-05,2]
[421079735,1776990632818,-226.9740427,7.823e-05,2]
[421079736,1776990632829,-150.0,7.825e-05,2]
[421079737,1776990632841,-226.9740427,7.831e-05,2]
[421079738,1776990632852,-226.9740427,7.84e-05,2]
[421079739,1776990632863,-2641.878,7.84e-05,2]